bitfinex-derivatives/quotes_BTCF0:USTF0_20250814
["timestamp","ask_amount","ask_price","bid_price","bid_amount"]
[1755188172945,0.19695815,117710.0,117700.0,2.10467678]
[1755188173140,0.51801815,117710.0,117700.0,0.53706074]
[1755188173341,0.59295815,117710.0,117700.0,0.55690678]
[1755188173547,0.59295815,117710.0,117700.0,1.40666852]
[1755188173847,0.59295815,117710.0,117700.0,1.69288678]
[1755188174534,0.59295815,117710.0,117700.0,1.49391852]
[1755188174741,0.40635092,117710.0,117700.0,2.56192057]
[1755188174949,0.40635092,117710.0,117700.0,2.80983883]
[1755188174950,0.25682092,117710.0,117700.0,2.80983883]
[1755188175148,0.47019277,117730.0,117700.0,2.51989635]
[1755188175344,0.25953,117730.0,117720.0,1.06141635]
[1755188175546,0.34448815,117730.0,117720.0,2.52037635]
[1755188175846,0.19495815,117730.0,117720.0,2.52037635]
[1755188176045,0.19495815,117730.0,117720.0,2.47737635]
[1755188176352,0.24448815,117730.0,117720.0,1.7701743]
[1755188176538,0.31987685,117730.0,117720.0,2.47737635]
[1755188176738,0.27134685,117730.0,117720.0,2.47737635]
[1755188176942,0.71282576,117750.0,117720.0,2.8741641]
[1755188176943,0.10555576,117750.0,117720.0,2.8741641]
[1755188177142,0.08145972,117750.0,117740.0,1.27817161]
[1755188177445,0.11,117750.0,117740.0,2.58933161]
[1755188177747,0.00136,117750.0,117740.0,2.75818761]
[1755188177949,0.00136,117750.0,117740.0,2.05098556]
[1755188178150,0.00136,117750.0,117740.0,0.94918556]
[1755188178151,0.10136,117750.0,117740.0,0.94918556]
[1755188178449,0.23881929,117750.0,117740.0,1.88220956]
[1755188178843,0.48428929,117750.0,117740.0,1.88320956]
[1755188179249,0.38428929,117750.0,117740.0,1.88320956]
[1755188179452,0.48528929,117750.0,117740.0,1.88320956]
[1755188179740,0.31034929,117750.0,117740.0,1.88320956]
[1755188179943,0.08928929,117750.0,117740.0,2.59041161]
[1755188180140,0.00336,117750.0,117740.0,2.74033816]
[1755188180342,0.00436,117750.0,117740.0,2.73933816]
[1755188180538,0.00336,117750.0,117740.0,2.74313816]
[1755188180756,0.00336,117750.0,117740.0,2.74233816]
[1755188181452,0.00336,117750.0,117740.0,2.74797816]
[1755188182655,0.06372987,117750.0,117740.0,2.74797816]
[1755188183756,0.06372987,117750.0,117740.0,2.57812216]
[1755188184350,0.00336,117750.0,117740.0,2.57812216]
[1755188184654,0.05044,117750.0,117740.0,2.57812216]
[1755188184846,0.002,117750.0,117740.0,2.57812216]
[1755188185153,0.28741,117770.0,117740.0,2.74877816]
[1755188185154,0.10564862,117760.0,117740.0,2.74877816]
[1755188185357,0.20564862,117760.0,117750.0,1.06800205]
[1755188185657,0.1,117760.0,117750.0,1.12873161]
[1755188186550,0.101,117760.0,117750.0,1.12873161]
[1755188186751,0.102,117760.0,117750.0,1.13073161]
[1755188187149,0.101,117760.0,117750.0,1.13073161]
[1755188187353,0.102,117760.0,117750.0,1.13073161]
[1755188187749,0.17745334,117760.0,117750.0,1.13073161]
[1755188187957,0.17745334,117760.0,117750.0,1.30057961]
[1755188188259,0.17745334,117760.0,117750.0,0.59337756]
[1755188188457,0.22453334,117760.0,117750.0,1.30057961]
[1755188188761,0.12453334,117760.0,117750.0,1.30057961]
[1755188189457,0.12453334,117760.0,117750.0,0.59337756]
[1755188189661,0.04908,117760.0,117750.0,2.23721161]
[1755188189953,0.23016726,117760.0,117750.0,2.23721161]
[1755188190158,0.10764862,117760.0,117750.0,2.23721161]
[1755188190362,0.07743864,117760.0,117750.0,2.23721161]
[1755188190855,0.04908,117760.0,117750.0,2.23721161]
[1755188191155,0.04908,117760.0,117750.0,1.53000956]
[1755188191361,0.12451864,117760.0,117750.0,2.23721161]
[1755188191856,0.002,117760.0,117750.0,2.23721161]
[1755188192058,0.07543864,117770.0,117750.0,2.60180395]
[1755188192256,0.15272862,117790.0,117770.0,0.1697557]
[1755188192458,0.10564862,117790.0,117780.0,2.59321161]
[1755188192665,0.10564862,117790.0,117780.0,1.88600956]
[1755188192865,0.15272862,117800.0,117780.0,1.88600956]
[1755188193055,0.15272862,117800.0,117790.0,1.12873161]
[1755188193554,0.15272862,117800.0,117790.0,1.12673161]
[1755188193861,0.10564862,117800.0,117790.0,1.01197547]
[1755188194062,0.1978831,117810.0,117790.0,1.01097547]
[1755188194267,0.1978831,117810.0,117800.0,2.22901161]
[1755188194668,0.04708,117810.0,117800.0,2.22901161]
[1755188195166,0.04708,117820.0,117800.0,2.3977876]
[1755188195371,0.04708,117820.0,117810.0,0.42152956]
[1755188195567,0.1,117810.0,117800.0,0.3598]
[1755188195764,0.46100604,117810.0,117800.0,1.4556]
[1755188195964,0.37712,117810.0,117800.0,1.51932956]
[1755188196264,1.17000809,117810.0,117800.0,0.06472956]
[1755188196459,1.53080809,117810.0,117800.0,0.06472956]
[1755188196655,1.63080809,117810.0,117800.0,0.06472956]
[1755188196966,1.63080809,117810.0,117770.0,0.3608]
[1755188196967,0.27612,117800.0,117770.0,0.3608]
[1755188197167,0.48160461,117790.0,117770.0,0.3608]
[1755188197458,0.37692,117770.0,117760.0,0.3608]
[1755188197658,0.11588,117750.0,117740.0,0.37453]
[1755188197872,0.37612,117750.0,117740.0,1.24773]
[1755188198067,0.37612,117750.0,117740.0,1.29624]
[1755188198269,0.46102045,117750.0,117740.0,1.29624]
[1755188198565,0.52131211,117750.0,117740.0,0.37453]
[1755188198764,0.46102045,117750.0,117730.0,0.40931]
[1755188199068,0.46102045,117750.0,117740.0,1.092]
[1755188199069,0.18490045,117750.0,117740.0,1.092]
[1755188199461,0.46202045,117750.0,117740.0,1.093]
[1755188199662,0.46302045,117750.0,117740.0,1.4558]
[1755188199967,0.46302045,117750.0,117740.0,1.4548]
[1755188200173,0.46202045,117750.0,117740.0,1.4548]
[1755188200368,0.46502045,117750.0,117740.0,0.3628]
[1755188200662,0.46502045,117750.0,117740.0,1.09056]
[1755188200859,0.46502045,117750.0,117740.0,1.09028]
[1755188201261,0.54121819,117750.0,117740.0,0.002]
[1755188201461,0.90201819,117750.0,117740.0,0.002]
[1755188201771,1.6308225,117750.0,117740.0,0.002]
[1755188202072,1.6308225,117750.0,117720.0,0.42353]
[1755188202073,0.04708,117730.0,117720.0,0.42353]
[1755188202262,0.06033807,117730.0,117720.0,1.17924205]
[1755188202663,0.33845807,117750.0,117730.0,0.06624]
[1755188202965,0.29436509,117750.0,117740.0,1.13424205]
[1755188203165,0.18592929,117750.0,117740.0,1.13424205]
[1755188203363,0.18492929,117750.0,117740.0,1.13324205]
[1755188203665,0.63647134,117750.0,117740.0,0.78584]
[1755188203862,0.53647134,117750.0,117740.0,0.42504]
[1755188204068,0.26035134,117750.0,117740.0,1.13224205]
[1755188204367,0.07542205,117750.0,117740.0,1.49384205]
[1755188204565,0.15256461,117770.0,117760.0,0.01773]
[1755188204769,0.15256461,117770.0,117760.0,2.53137205]
[1755188205267,0.10548461,117780.0,117770.0,0.01853]
[1755188205467,0.10548461,117780.0,117770.0,1.08573205]
[1755188205670,0.15256461,117780.0,117770.0,0.37753]
[1755188205859,0.15256461,117780.0,117770.0,0.37653]
[1755188206169,0.15256461,117780.0,117770.0,1.08373205]
[1755188206474,0.15356461,117780.0,117770.0,1.08473205]
[1755188206774,0.15456461,117780.0,117770.0,0.38153]
[1755188207665,0.002,117780.0,117770.0,0.38153]
[1755188207973,0.10748461,117780.0,117770.0,0.552146]
[1755188208474,0.002,117780.0,117770.0,0.551346]
[1755188208667,0.002,117780.0,117770.0,0.552146]
[1755188208873,0.002,117780.0,117770.0,0.8370242]
[1755188209081,0.15256461,117800.0,117790.0,0.01373]
[1755188209375,0.1977723,117810.0,117790.0,1.79606148]
[1755188209581,0.1506923,117810.0,117800.0,0.94870996]
[1755188209766,0.2506923,117810.0,117800.0,0.94870996]
[1755188210074,0.10577825,117810.0,117800.0,0.53057599]
[1755188210278,0.15285825,117810.0,117800.0,0.94870996]
[1755188210470,0.15285825,117810.0,117800.0,0.94770996]
[1755188210671,0.23774429,117810.0,117800.0,0.3588]
[1755188210869,0.15285825,117820.0,117800.0,1.44164]
[1755188211375,0.10577825,117810.0,117800.0,1.44164]
[1755188211577,0.10577825,117810.0,117800.0,1.80244]
[1755188211779,0.10577825,117810.0,117800.0,1.97403599]
[1755188212163,0.10495825,117810.0,117800.0,1.97603599]
[1755188212373,0.10495825,117810.0,117800.0,1.97703599]
[1755188212374,0.10695825,117810.0,117800.0,1.97703599]
[1755188212581,0.003,117810.0,117800.0,1.97703599]
[1755188212772,0.002,117810.0,117800.0,1.97503599]
[1755188212974,0.002,117810.0,117800.0,1.97803599]
[1755188213379,0.06243326,117810.0,117800.0,1.97803599]
[1755188213578,0.06143326,117810.0,117800.0,1.97903599]
[1755188213878,0.06243326,117810.0,117800.0,1.97903599]
[1755188214575,0.04954,117810.0,117800.0,0.72642]
[1755188214973,0.28569,117810.0,117800.0,1.80106]
[1755188215167,0.36203158,117810.0,117800.0,0.3638]
[1755188215367,0.36203158,117810.0,117800.0,1.43784]
[1755188215368,0.44691762,117810.0,117800.0,1.43784]
[1755188215572,0.54691762,117810.0,117800.0,1.43784]
[1755188216568,0.54691762,117810.0,117800.0,1.43524]
[1755188217172,0.54691762,117810.0,117800.0,1.43356]
[1755188217478,0.47137604,117810.0,117800.0,1.43356]
[1755188217679,0.47057604,117810.0,117800.0,1.43356]
[1755188218075,0.47057604,117810.0,117800.0,1.43556]
[1755188218280,0.54611762,117810.0,117800.0,1.07476]
[1755188218778,0.54611762,117810.0,117800.0,1.43556]
[1755188218980,0.54611762,117810.0,117800.0,1.07476]
[1755188219174,0.54611762,117810.0,117800.0,1.43556]
[1755188219477,0.44611762,117810.0,117800.0,1.07476]
[1755188220584,0.20996762,117810.0,117800.0,1.43556]
[1755188220784,0.002,117810.0,117800.0,1.43556]
[1755188221077,0.07754158,117810.0,117800.0,1.60613599]
[1755188221276,0.002,117810.0,117800.0,1.60613599]
[1755188221676,0.06229875,117810.0,117800.0,1.60613599]
[1755188221877,0.06229875,117810.0,117800.0,1.60533599]
[1755188222381,0.06229875,117810.0,117800.0,1.60613599]
[1755188222584,0.002,117810.0,117800.0,1.69099229]
[1755188222878,0.06029875,117820.0,117800.0,1.97584859]
[1755188223078,0.07554158,117820.0,117810.0,1.03410069]
[1755188223268,0.22861532,117840.0,117810.0,1.11894599]
[1755188223475,0.18107532,117840.0,117830.0,1.31005159]
[1755188223676,0.25622604,117860.0,117830.0,1.31005159]
[1755188223874,0.15307374,117860.0,117850.0,1.30925159]
[1755188224080,0.10553374,117860.0,117850.0,1.30925159]
[1755188224390,0.07528843,117860.0,117850.0,1.30825159]
[1755188224580,0.17384374,117880.0,117850.0,0.7216]
[1755188224780,0.25307374,117870.0,117860.0,1.64813159]
[1755188224976,0.15307374,117870.0,117860.0,2.00793159]
[1755188225290,0.10553374,117870.0,117860.0,2.00873159]
[1755188225781,0.10553374,117870.0,117860.0,1.42008]
[1755188225987,0.10553374,117870.0,117860.0,2.00693159]
[1755188226173,0.10553374,117870.0,117860.0,2.37741959]
[1755188226376,0.07520177,117870.0,117860.0,2.54704579]
[1755188226889,0.07520177,117880.0,117860.0,2.63185889]
[1755188227186,0.07520177,117880.0,117870.0,0.3598]
[1755188227686,0.07520177,117880.0,117870.0,0.528472]
[1755188227887,0.07520177,117880.0,117870.0,1.11512359]
[1755188228285,0.10553374,117900.0,117870.0,1.13258541]
[1755188228286,0.07520177,117890.0,117870.0,1.13258541]
[1755188228582,0.15307374,117900.0,117880.0,2.00373159]
[1755188228789,0.32091374,117900.0,117890.0,0.3598]
[1755188229287,0.15307374,117900.0,117890.0,0.3598]
[1755188230186,0.38922374,117900.0,117890.0,0.37728606]
[1755188230388,0.38922374,117900.0,117890.0,0.37628606]
[1755188230893,0.15307374,117900.0,117890.0,0.37528606]
[1755188231189,0.10653374,117900.0,117890.0,0.96593765]
[1755188232189,0.10753374,117900.0,117890.0,0.96993765]
[1755188232488,0.10753374,117900.0,117890.0,0.38228606]
[1755188232689,0.10753374,117900.0,117890.0,0.96993765]
[1755188233596,0.002,117900.0,117890.0,0.38228606]
[1755188233890,0.04954,117900.0,117890.0,1.39452606]
[1755188234090,0.39122374,117900.0,117890.0,1.39452606]
[1755188234793,0.15507374,117900.0,117890.0,1.39452606]
[1755188235288,0.15507374,117900.0,117890.0,1.39480606]
[1755188235594,0.39122374,117900.0,117890.0,1.39480606]
[1755188235888,0.32291374,117900.0,117890.0,1.39480606]
[1755188236283,0.39202374,117900.0,117890.0,0.02448606]
[1755188236588,0.06831,117880.0,117870.0,0.01746182]
[1755188236789,0.38369,117880.0,117870.0,0.01746182]
[1755188236987,0.97134159,117880.0,117870.0,0.37826182]
[1755188237186,0.36851123,117880.0,117870.0,0.37826182]
[1755188237587,0.44373061,117880.0,117870.0,0.37826182]
[1755188237788,0.12275938,117880.0,117870.0,0.37826182]
[1755188237990,0.07621938,117880.0,117870.0,0.55712382]
[1755188238178,0.10753374,117880.0,117870.0,0.54201556]
[1755188238385,0.10753374,117880.0,117870.0,1.12886715]
[1755188238585,0.15507374,117880.0,117870.0,0.36835356]
[1755188239495,0.27761767,117880.0,117870.0,0.36835356]
[1755188240289,0.34592767,117880.0,117870.0,0.36835356]
[1755188240481,0.28569,117880.0,117870.0,1.41967356]
[1755188241295,0.21738,117880.0,117870.0,1.41967356]
[1755188241595,0.04954,117880.0,117870.0,1.41967356]
[1755188241796,0.28569,117880.0,117870.0,1.41967356]
[1755188242387,0.10977767,117880.0,117870.0,1.41967356]
[1755188242584,0.002,117880.0,117870.0,1.41967356]
[1755188242893,0.002,117880.0,117870.0,2.09213095]
[1755188243094,0.002,117880.0,117870.0,2.00732515]
[1755188243597,0.002,117880.0,117870.0,1.41967356]
[1755188243990,0.002,117880.0,117870.0,1.50447936]
[1755188244592,0.002,117880.0,117870.0,1.41967356]
[1755188244794,0.002,117880.0,117870.0,1.50447936]
[1755188245194,0.002,117880.0,117870.0,1.41967356]
[1755188245393,0.04941,117880.0,117870.0,1.41967356]
[1755188246087,0.04941,117880.0,117870.0,2.00732515]
[1755188246284,0.002,117880.0,117870.0,2.00732515]
[1755188246491,0.04941,117880.0,117870.0,2.00732515]
[1755188246695,0.04941,117880.0,117870.0,0.36835356]
[1755188246899,0.04941,117880.0,117870.0,1.41035356]
[1755188247392,0.5232333,117880.0,117870.0,1.41035356]
[1755188247591,0.46299563,117880.0,117870.0,0.01]
[1755188247787,0.52326275,117880.0,117870.0,1.05256]
[1755188247994,1.02379563,117880.0,117870.0,0.01]
[1755188248195,0.36219563,117880.0,117870.0,0.01]
[1755188248397,0.46219563,117880.0,117870.0,0.3708]
[1755188248799,0.33766376,117880.0,117870.0,0.3708]
[1755188249096,0.06230376,117880.0,117870.0,0.95845159]
[1755188249301,0.002,117880.0,117870.0,0.95845159]
[1755188249604,0.04941,117880.0,117870.0,0.95925159]
[1755188249902,0.06233897,117880.0,117870.0,1.21372889]
[1755188250592,0.002,117880.0,117870.0,1.21372889]
[1755188250794,0.002,117880.0,117870.0,1.41372889]
[1755188251594,0.002,117880.0,117870.0,0.8260773]
[1755188251797,0.002,117880.0,117870.0,1.41372889]
[1755188253001,0.002,117880.0,117870.0,1.58333479]
[1755188253606,0.06233897,117880.0,117870.0,1.58333479]
[1755188253800,0.002,117880.0,117870.0,1.58333479]
[1755188253997,0.06046605,117890.0,117880.0,0.0847979]
[1755188254298,0.06046605,117890.0,117880.0,1.4806779]
[1755188254506,0.06046605,117890.0,117880.0,1.6511339]
[1755188254705,0.06046605,117890.0,117880.0,1.6503339]
[1755188255601,0.07530796,117910.0,117890.0,0.2543655]
[1755188255908,0.12271796,117910.0,117900.0,1.75536]
[1755188256399,0.12271796,117910.0,117900.0,1.75436]
[1755188256605,0.07530796,117910.0,117900.0,1.75436]
[1755188256803,0.07530796,117910.0,117900.0,1.8391437]
[1755188257308,0.07530796,117910.0,117900.0,1.8421437]
[1755188257510,0.10553374,117920.0,117910.0,0.2543184]
[1755188257803,0.10553374,117920.0,117910.0,1.1310825]
[1755188258001,0.04751,117930.0,117910.0,1.0463095]
[1755188258196,0.04751,117930.0,117920.0,1.38932]
[1755188259200,0.04751,117930.0,117920.0,1.97697159]
[1755188259699,0.04751,117930.0,117920.0,1.38932]
[1755188259902,0.04751,117930.0,117920.0,2.06174079]
[1755188260098,0.04851,117930.0,117920.0,1.97697159]
[1755188260299,0.04851,117930.0,117920.0,2.06174079]
[1755188260701,0.0011,117930.0,117920.0,2.18214746]
[1755188260905,0.0011,117930.0,117920.0,2.18414746]
[1755188261107,0.0011,117930.0,117920.0,1.4760892]
[1755188261306,0.0011,117930.0,117920.0,2.18414746]
[1755188261904,0.11534,117960.0,117940.0,0.0847545]
[1755188262100,0.04741,117960.0,117950.0,2.45581826]
[1755188262303,0.15294374,117960.0,117950.0,2.32132425]
[1755188262909,0.04741,117960.0,117950.0,2.32132425]
[1755188263208,0.04841,117960.0,117950.0,2.32132425]
[1755188263399,0.05341,117960.0,117950.0,2.32232425]
[1755188263594,0.12134,117960.0,117950.0,0.58810599]
[1755188263800,0.28136,117960.0,117950.0,2.32228425]
[1755188264006,0.27736,117960.0,117950.0,2.32128425]
[1755188264301,0.27736,117960.0,117950.0,2.40603185]
[1755188264302,0.04841,117960.0,117950.0,2.40603185]
[1755188264497,0.001,117960.0,117950.0,2.40703185]
[1755188265211,0.22795,117990.0,117960.0,0.2542103]
[1755188265510,0.04741,117980.0,117970.0,1.38672]
[1755188265705,0.04741,117980.0,117970.0,1.74752]
[1755188265905,0.28827632,117990.0,117970.0,1.74752]
[1755188265906,0.06032632,117990.0,117970.0,1.74752]
[1755188266112,0.06032632,117990.0,117980.0,0.3608]
[1755188266113,0.27536,117990.0,117980.0,0.3608]
[1755188266409,0.27536,117990.0,117980.0,0.3178]
[1755188266615,0.27536,117990.0,117980.0,1.02585826]
[1755188266913,0.27536,117990.0,117980.0,1.02485826]
[1755188267110,0.27736,117990.0,117980.0,1.02485826]
[1755188267313,0.27736,117990.0,117960.0,0.36092708]
[1755188267314,0.27536,117970.0,117960.0,0.36092708]
[1755188267513,0.27616,117970.0,117960.0,0.36092708]
[1755188267910,0.27616,117970.0,117960.0,1.38900708]
[1755188268112,0.36091653,117970.0,117960.0,1.38900708]
[1755188268311,0.36091653,117970.0,117960.0,0.00012708]
[1755188268514,0.36091653,117970.0,117960.0,1.02764708]
[1755188268716,0.36091653,117970.0,117960.0,0.00012708]
[1755188269018,0.36091653,117970.0,117960.0,1.02656708]
[1755188269317,0.36091653,117970.0,117960.0,1.03056708]
[1755188269515,0.36091653,117970.0,117960.0,1.02656708]
[1755188269708,0.36091653,117970.0,117960.0,1.02856708]
[1755188270018,0.36091653,117970.0,117960.0,1.02956708]
[1755188270314,0.36011653,117970.0,117960.0,1.02880708]
[1755188270513,0.36011653,117970.0,117960.0,1.02680708]
[1755188270816,0.36011653,117970.0,117960.0,1.02780708]
[1755188271312,0.72171653,117970.0,117960.0,1.02776708]
[1755188271513,0.36091653,117970.0,117960.0,1.02776708]
[1755188272420,0.36011653,117970.0,117960.0,1.02776708]
[1755188273617,0.36011653,117970.0,117960.0,1.38856708]
[1755188273812,0.27536,117970.0,117960.0,1.38856708]
[1755188274013,0.27536,117970.0,117960.0,1.02776708]
[1755188274209,0.27536,117970.0,117960.0,1.38856708]
[1755188274410,0.04741,117970.0,117960.0,1.38856708]
[1755188275219,0.04741,117970.0,117960.0,1.40544399]
[1755188276125,0.14592,117980.0,117960.0,1.49098239]
[1755188276308,0.14592,117980.0,117970.0,0.94695502]
[1755188276513,0.04592,117980.0,117970.0,0.94695502]
[1755188277028,0.04592,117990.0,117970.0,0.94695502]
[1755188277220,0.04592,117990.0,117980.0,1.38624]
[1755188277524,0.21646,117990.0,117980.0,1.38624]
[1755188277821,0.2907,117990.0,117980.0,1.38624]
[1755188278919,0.2907,117990.0,117980.0,1.97239502]
[1755188279125,0.21646,117990.0,117980.0,1.97139502]
[1755188279525,0.04592,117990.0,117980.0,1.97139502]
[1755188280013,0.04592,118000.0,117980.0,1.97139502]
[1755188280219,0.21646,118000.0,117980.0,1.97639502]
[1755188280414,0.04592,117990.0,117980.0,1.97639502]
[1755188280615,0.08736863,118010.0,117980.0,1.97639502]
[1755188280814,0.25790863,118010.0,118000.0,0.58615502]
[1755188281132,0.34266157,118010.0,118000.0,1.61135502]
[1755188281315,0.1343793,118010.0,118000.0,1.61135502]
[1755188281521,0.30382863,118010.0,118000.0,1.61135502]
[1755188281728,0.04592,118010.0,118000.0,1.61135502]
[1755188281920,0.2907,118010.0,118000.0,1.61135502]
[1755188282122,0.6515,118010.0,118000.0,1.02512]
[1755188282322,0.2907,118010.0,118000.0,1.02512]
[1755188282821,0.04592,118000.0,117990.0,0.96418816]
[1755188283016,0.04592,118000.0,117990.0,1.98922816]
[1755188283514,0.2907,118000.0,117990.0,0.37803314]
[1755188283918,0.2907,118000.0,117990.0,1.40295314]
[1755188284120,0.04592,118000.0,117990.0,0.38303314]
[1755188284317,0.2907,118000.0,117990.0,0.38303314]
[1755188284734,0.4107,118000.0,117990.0,1.39080708]
[1755188285233,0.16592,118000.0,117990.0,1.39080708]
[1755188285439,0.16592,118000.0,117990.0,1.40790455]
[1755188285932,0.16592,118000.0,117990.0,0.38302455]
[1755188286133,0.4107,118000.0,117990.0,0.96917957]
[1755188286321,0.4107,118000.0,117990.0,1.99389957]
[1755188286524,0.16592,118000.0,117990.0,1.99389957]
[1755188286724,0.16492,118000.0,117990.0,1.99185957]
[1755188287128,0.16492,118000.0,117990.0,1.98885957]
[1755188287129,0.12,118000.0,117990.0,1.98885957]
[1755188287535,0.12,118000.0,117990.0,1.40266455]
[1755188287733,0.12,118000.0,117990.0,1.98881957]
[1755188288030,0.12,118000.0,117990.0,1.98777957]
[1755188288229,0.36478,118000.0,117990.0,0.37702455]
[1755188288623,0.45032935,118000.0,117990.0,0.01909747]
[1755188288828,1.40182948,118000.0,117990.0,0.01909747]
[1755188289221,1.40102948,118000.0,117990.0,0.01909747]
[1755188289422,1.03233348,118000.0,117990.0,0.01909747]
[1755188289638,0.93233348,118000.0,117990.0,0.01909747]
[1755188289830,0.85704935,118000.0,117990.0,0.01909747]
[1755188290039,0.91651084,118000.0,117990.0,0.01909747]
[1755188290339,0.49544935,118000.0,117990.0,0.01909747]
[1755188290522,0.22622063,118000.0,117990.0,0.60525249]
[1755188290728,0.22622063,118000.0,117990.0,1.08833748]
[1755188290927,0.16592,118000.0,117990.0,1.08833748]
[1755188291135,0.22621544,118000.0,117990.0,1.08733748]
[1755188291338,0.39675544,118000.0,117990.0,2.11165748]
[1755188291534,0.47099544,118000.0,117990.0,1.04341747]
[1755188291837,0.47099544,118000.0,117990.0,1.40421747]
[1755188292037,0.47099544,118000.0,117990.0,1.40221747]
[1755188292339,0.47105079,118000.0,117990.0,2.11065748]
[1755188292641,0.47105079,118000.0,117990.0,0.72553748]
[1755188292946,0.47105079,118000.0,117990.0,2.11057748]
[1755188293339,0.39681079,118000.0,117990.0,2.11057748]
[1755188293641,0.22627079,118000.0,117990.0,2.37447748]
[1755188294325,0.39681079,118000.0,117990.0,2.37347748]
[1755188294536,0.47105079,118000.0,117990.0,2.37347748]
[1755188294926,0.47105079,118000.0,117990.0,1.66595747]
[1755188295132,0.4107,118000.0,117990.0,1.30515747]
[1755188295427,0.95624935,118000.0,117990.0,0.28099747]
[1755188295632,0.95704935,118000.0,117990.0,1.025]
[1755188295833,0.95704935,118000.0,117990.0,0.89054755]
[1755188296030,0.95704935,118000.0,117970.0,1.06824001]
[1755188296031,0.2907,117990.0,117970.0,1.06824001]
[1755188296236,0.57630025,117990.0,117980.0,1.02396]
[1755188296636,0.4408896,117990.0,117970.0,1.06824001]
[1755188296840,0.2907,117980.0,117970.0,1.06824001]
[1755188297043,0.4007,117980.0,117970.0,1.38472]
[1755188297241,0.4007,117980.0,117970.0,2.09216001]
[1755188297538,0.15592,117980.0,117970.0,1.06824001]
[1755188297737,0.15592,117980.0,117970.0,2.09308001]
[1755188297940,0.4007,117980.0,117970.0,1.06824001]
[1755188298144,0.47630025,117980.0,117970.0,1.02384]
[1755188298331,0.47630025,117980.0,117970.0,2.09204001]
[1755188298538,0.47630025,117980.0,117970.0,1.73124001]
[1755188298740,0.47630025,117980.0,117970.0,2.09204001]
[1755188298938,0.47630025,117980.0,117970.0,2.09304001]
[1755188299334,0.47630025,117980.0,117970.0,2.09404001]
[1755188299335,0.23152025,117980.0,117970.0,2.09404001]
[1755188299540,0.15592,117980.0,117970.0,2.09397204]
[1755188299845,0.15592,117980.0,117970.0,1.38653203]
[1755188300049,0.4007,117980.0,117970.0,2.09397204]
[1755188300236,0.11,117980.0,117970.0,2.09397204]
[1755188300449,0.11,117980.0,117970.0,2.09497204]
[1755188300450,0.15592,117980.0,117970.0,2.09497204]
[1755188300943,0.2315542,117980.0,117970.0,2.09497204]
[1755188301246,0.1856342,117980.0,117970.0,1.07204001]
[1755188301554,0.1856342,117980.0,117970.0,2.09560001]
[1755188301848,0.11,117980.0,117970.0,2.09480001]
[1755188302045,0.1856342,117980.0,117970.0,2.09480001]
[1755188302549,0.1846342,117980.0,117970.0,2.09560001]
[1755188302842,0.15176411,118000.0,117970.0,1.38716]
[1755188303045,0.15592,118000.0,117990.0,1.06824001]
[1755188303253,0.15592,118000.0,117990.0,2.09164001]
[1755188304336,0.11,118000.0,117990.0,2.09164001]
[1755188304840,0.15721,118000.0,117990.0,2.09164001]
[1755188305039,0.15721,118000.0,117990.0,2.09264001]
[1755188305334,0.15721,118000.0,117990.0,1.3852]
[1755188305335,0.32498,118000.0,117990.0,1.3852]
[1755188305648,0.39913,118000.0,117990.0,0.3618]
[1755188306039,0.39913,118000.0,117990.0,1.38496]
[1755188306240,0.39913,118000.0,117990.0,2.09240001]
[1755188306442,0.39913,118000.0,117990.0,0.3618]
[1755188306637,2.02241536,118000.0,117990.0,0.001]
[1755188306948,0.28913,117970.0,117960.0,1.40183691]
[1755188307241,0.39913,117970.0,117960.0,0.01699691]
[1755188307441,0.39913,117970.0,117960.0,1.04003691]
[1755188307637,0.48387935,117970.0,117960.0,1.04103691]
[1755188307833,0.51294006,117970.0,117960.0,1.04103691]
[1755188308038,0.51294006,117970.0,117960.0,1.74847692]
[1755188308238,0.51294006,117970.0,117960.0,1.59690897]
[1755188308436,0.28913,117960.0,117950.0,1.06924001]
[1755188308641,0.52759523,117960.0,117950.0,2.09228001]
[1755188308855,0.26879385,117960.0,117950.0,2.09228001]
[1755188309148,0.22158385,117960.0,117950.0,2.09228001]
[1755188309742,0.28968138,117960.0,117950.0,2.09228001]
[1755188310342,0.28968138,117960.0,117950.0,2.09328001]
[1755188310545,0.04721,117980.0,117950.0,1.38664]
[1755188310746,0.10721,117980.0,117970.0,1.06824001]
[1755188311244,0.34913,117980.0,117970.0,1.06824001]
[1755188311448,0.10721,117980.0,117970.0,1.06824001]
[1755188311756,0.10721,117980.0,117970.0,1.08526188]
[1755188312342,0.21692452,117980.0,117970.0,1.08526188]
[1755188312543,0.45884452,117980.0,117970.0,1.04006187]
[1755188313236,0.24192,117970.0,117930.0,0.4058]
[1755188313441,0.34964247,117950.0,117940.0,0.3608]
[1755188313736,0.34964247,117950.0,117940.0,1.06288]
[1755188313737,0.4964496,117950.0,117940.0,1.06288]
[1755188313942,0.57839077,117950.0,117940.0,1.06288]
[1755188314245,0.86752077,117950.0,117940.0,1.06288]
[1755188314448,0.67839077,117950.0,117930.0,0.045]
[1755188314654,0.74993,117940.0,117930.0,1.108]
[1755188314957,0.70993,117940.0,117930.0,1.108]
[1755188315253,0.85522214,117940.0,117930.0,1.108]
[1755188315438,0.95522214,117940.0,117930.0,0.045]
[1755188315643,0.95522214,117940.0,117930.0,1.10516]
[1755188315852,0.85522214,117940.0,117930.0,1.10516]
[1755188316051,0.95522214,117940.0,117930.0,1.10616]
[1755188316748,0.85522214,117940.0,117930.0,1.10516]
[1755188316949,0.87221811,117940.0,117930.0,1.10716]
[1755188318055,0.81171125,117940.0,117930.0,1.10416]
[1755188318456,0.87216141,117940.0,117930.0,1.10416]
[1755188319051,0.81171125,117940.0,117930.0,1.10416]
[1755188319555,0.81171125,117940.0,117930.0,1.10116]
[1755188322056,0.87216141,117940.0,117930.0,0.041]
[1755188322259,0.81171125,117940.0,117930.0,1.09704]
[1755188323459,0.91171125,117940.0,117930.0,1.0922]
[1755188323759,0.21498,117920.0,117910.0,0.37795822]
[1755188323958,0.29197597,117920.0,117910.0,2.13659823]
[1755188324366,0.29197597,117920.0,117910.0,1.08539823]
[1755188324555,0.35809621,117920.0,117910.0,1.42799822]
[1755188324757,0.35809621,117920.0,117910.0,2.13543823]
[1755188324955,0.35809621,117920.0,117910.0,1.42799822]
[1755188325261,0.35809621,117920.0,117910.0,2.13543823]
[1755188325460,0.43224621,117920.0,117910.0,0.37795822]
[1755188325661,0.43224621,117920.0,117910.0,2.13787823]
[1755188326359,0.43224621,117920.0,117910.0,0.38095822]
[1755188326556,0.43224621,117920.0,117910.0,2.13359823]